fUSD/lending_fUSD_20250421
["ID","MTS","AMOUNT","RATE_DAILY","PERIOD"]
[358488267,1745206242357,-500.0,0.00063559,120]
[358488268,1745206242367,-500.0,0.00063559,120]
[358488269,1745206242376,-500.0,0.00063559,120]
[358488270,1745206242385,-565.26978532,0.00063559,120]
[358488271,1745206242395,-500.0,0.00063559,30]
[358488272,1745206242404,-500.0,0.00063559,120]
[358488273,1745206242414,-200.04021235,0.00063559,120]
[358488274,1745206242423,-365.61306793,0.00063559,120]
[358488275,1745206242432,-715.54,0.00063559,120]
[358488276,1745206242441,-500.0,0.00063559,120]
[358488277,1745206242450,-500.0,0.00063559,120]
[358488278,1745206242460,-637.94481424,0.00063559,120]
[358488279,1745206242470,-594.82,0.00063559,120]
[358488280,1745206242479,-500.0,0.00063559,120]
[358488281,1745206242489,-1009.45,0.00063559,120]
[358488282,1745206242498,-510.01,0.00063559,120]
[358488283,1745206242507,-529.65,0.00063559,120]
[358488284,1745206242517,-500.0,0.00063559,120]
[358488285,1745206242527,-560.16,0.00063559,120]
[358488286,1745206242537,-540.64,0.00063559,120]
[358488287,1745206242546,-674.91,0.00063559,120]
[358488288,1745206242557,-728.58,0.00063559,120]
[358488289,1745206242566,-500.0,0.00063559,120]
[358488290,1745206242576,-500.0,0.00063559,120]
[358488292,1745206242585,-768.63,0.00063559,120]
[358488293,1745206242595,-807.87,0.00063559,120]
[358488294,1745206242605,-500.0,0.00063559,120]
[358488295,1745206242615,-500.0,0.00063559,120]
[358488297,1745206242624,-500.0,0.00063559,120]
[358488299,1745206242634,-500.0,0.00063559,120]
[358488300,1745206242644,-500.0,0.00063559,120]
[358488301,1745206242653,-2000.0,0.00063559,120]
[358488302,1745206242662,-500.0,0.00063559,120]
[358488303,1745206242672,-533.26390759,0.00063559,120]
[358488304,1745206242681,-500.0,0.00063559,120]
[358488305,1745206242690,-500.0,0.00063559,120]
[358488306,1745206242700,-500.0,0.00063559,120]
[358488307,1745206242709,-514.61248297,0.00063559,120]
[358488308,1745206242718,-500.0,0.00063559,120]
[358488309,1745206242728,-590.2124972,0.00063559,16]
[358488310,1745206242740,-1443.34,0.00063559,120]
[358488311,1745206242751,-500.0,0.00063559,120]
[358488314,1745206242760,-500.0,0.00063559,120]
[358488316,1745206242770,-500.0,0.00063559,120]
[358488317,1745206242779,-1105.38,0.00063559,120]
[358488318,1745206242791,-500.0,0.00063561,120]
[358488319,1745206242800,-1834.58,0.00063561,120]
[358488320,1745206242810,-500.0,0.00063561,120]
[358488322,1745206242820,-535.91366576,0.00063561,120]
[358488324,1745206242830,-620.11,0.00063561,120]
[358488325,1745206242839,-500.57626244,0.00063561,2]
[358488326,1745206242848,-500.0,0.00063561,120]
[358488327,1745206242857,-500.0,0.00063561,2]
[358488328,1745206242866,-500.0,0.00063561,120]
[358488329,1745206242875,-289.75407387,0.00063561,120]
[358488330,1745206242884,-500.0,0.00063561,120]
[358488331,1745206242893,-500.0,0.00063561,120]
[358488332,1745206242902,-500.0,0.00063561,120]
[358488333,1745206242912,-532.03148509,0.00063561,120]
[358488334,1745206242921,-500.0,0.00063561,120]
[358488335,1745206242930,-500.0,0.00063561,120]
[358488336,1745206242939,-500.0,0.00063561,120]
[358488337,1745206242949,-500.0,0.00063561,120]
[358488338,1745206242959,-600.98,0.00063561,120]
[358488339,1745206242968,-500.0,0.00063561,120]
[358488340,1745206242977,-1604.29,0.00063561,120]
[358488341,1745206242987,-500.0,0.00063561,120]
[358488342,1745206242996,-387.59399054,0.00063561,120]
[358488343,1745206243006,-500.0,0.00063561,120]
[358488344,1745206243015,-500.0,0.00063561,120]
[358488345,1745206243025,-500.0,0.00063561,120]
[358488346,1745206243034,-1033.25,0.00063561,120]
[358488347,1745206243043,-2091.49,0.00063561,120]
[358488348,1745206243052,-500.0,0.00063561,120]
[358488349,1745206243062,-500.0,0.00063561,120]
[358488350,1745206243071,-361.36269097,0.00063561,120]
[358488351,1745206243080,-500.0,0.00063561,120]
[358488352,1745206243090,-500.0,0.00063561,120]
[358488353,1745206243100,-193.4089767,0.00063561,120]
[358488354,1745206243109,-500.0,0.00063561,120]
[358488355,1745206243118,-500.0,0.00063561,8]
[358488356,1745206243127,-471.35326676,0.00063561,120]
[358488357,1745206243136,-550.8160302,0.00063561,120]
[358488358,1745206243146,-500.0,0.00063561,120]
[358488359,1745206243155,-500.0,0.00063561,120]
[358488360,1745206243164,-500.0,0.00063561,120]
[358488361,1745206243173,-500.0,0.00063561,120]
[358488362,1745206243183,-1928.23,0.00063561,120]
[358488363,1745206243192,-500.0,0.00063561,120]
[358488364,1745206243201,-500.0,0.00063561,120]
[358488365,1745206243210,-3439.08,0.00063561,2]
[358488366,1745206243219,-500.0,0.00063561,120]
[358488367,1745206243228,-500.0,0.00063561,120]
[358488368,1745206243238,-635.68441859,0.00063561,120]
[358488369,1745206243246,-500.0,0.00063561,120]
[358488370,1745206243255,-179.37412288,0.00063561,120]
[358488371,1745206243264,-500.0,0.00063561,120]
[358488372,1745206243274,-500.0,0.00063561,120]
[358488373,1745206243283,-500.0,0.00063561,120]
[358488374,1745206243292,-500.0,0.00063561,120]
[358488375,1745206243301,-500.0,0.00063561,120]
[358488376,1745206243311,-222.27391684,0.00063561,120]
[358488377,1745206243319,-500.0,0.00063561,120]
[358488378,1745206243328,-500.0,0.00063561,120]
[358488379,1745206243337,-1438.39,0.00063561,120]
[358488380,1745206243346,-500.0,0.00063561,120]
[358488381,1745206243355,-269.12622514,0.00063561,120]
[358488382,1745206243364,-500.0,0.00063561,120]
[358488383,1745206243373,-500.0,0.00063561,120]
[358488384,1745206243383,-500.0,0.00063561,118]
[358488385,1745206243504,-500.0,0.00063561,120]
[358488386,1745206243514,-534.28677477,0.00063561,120]
[358488387,1745206243523,-500.0,0.00063561,120]
[358488388,1745206243533,-521.6373771,0.00063561,120]
[358488389,1745206243542,-500.0,0.00063561,120]
[358488390,1745206243551,-500.0,0.00063561,120]
[358488391,1745206243561,-1000.0,0.00063577,60]
[358488392,1745206243571,-600.0,0.000638,23]
[358488393,1745206243582,-789.1353386,0.00063889,35]
[358488394,1745206243592,-186.72856281,0.0006389,95]
[358488395,1745206243602,-2377.2109482,0.000639,120]
[358488396,1745206243613,-1300.0,0.000639,23]
[358488397,1745206243624,-2700.0,0.000639,23]
[358488398,1745206243634,-900.0,0.000639,23]
[358488399,1745206243645,-500.0,0.00063973,15]
[358488400,1745206243655,-9767.04424442,0.0006398,5]
[358488401,1745206243664,-20560.3673553,0.0006399,4]
[358488402,1745206243673,-19534.0884888,0.0006399,5]
[358488403,1745206243683,-200.0,0.00064,120]
[358488404,1745206243693,-36825.21383065,0.00064,120]
[358488405,1745206243702,-169.0,0.00064,120]
[358488406,1745206243712,-9767.04424442,0.00064078,5]
[358488407,1745206243721,-9767.04424442,0.00064087,5]
[358488408,1745206243730,-20560.3673553,0.00064088,4]
[358488409,1745206243744,-9767.04424442,0.00064088,5]
[358488410,1745206243753,-9767.04424442,0.00064089,5]
[358488411,1745206243763,-20560.3673553,0.00064097,4]
[358488412,1745206243772,-19534.0884888,0.00064097,5]
[358488413,1745206243782,-20560.3673553,0.00064098,4]
[358488414,1745206243792,-19534.0884888,0.00064098,5]
[358488415,1745206243802,-1161.75542025,0.00064098,120]
[358488416,1745206243812,-20560.3673553,0.00064099,4]
[358488417,1745206243821,-9767.04424442,0.00064099,5]
[358488418,1745206243830,-849.39,0.00064106,120]
[358488419,1745206243839,-500.0,0.00064107,60]
[358488420,1745206243849,-672.03124399,0.00064107,120]
[358488421,1745206243858,-522.21,0.00064107,120]
[358488422,1745206243867,-229.41499577,0.00064107,120]
[358488423,1745206243877,-994.36,0.00064107,120]
[358488424,1745206243886,-1864.78,0.00064107,120]
[358488425,1745206243895,-873.81,0.00064107,120]
[358488426,1745206243904,-702.1,0.00064107,120]
[358488427,1745206243913,-782.91,0.00064107,120]
[358488428,1745206243922,-500.0,0.00064107,120]
[358488429,1745206243931,-278.30332498,0.00064107,120]
[358488430,1745206243940,-509.72906875,0.00064107,120]
[358488431,1745206243949,-589.81213946,0.00064107,120]
[358488432,1745206243959,-500.0,0.00064107,120]
[358488433,1745206243968,-170.33126059,0.00064107,120]
[358488434,1745206243977,-500.0,0.00064107,120]
[358488435,1745206243985,-547.60796594,0.00064107,120]
[358488436,1745206243994,-500.0,0.00064107,120]
[358488437,1745206244004,-500.0,0.00064107,120]
[358488438,1745206244013,-511.04571597,0.00064107,120]
[358488439,1745206244022,-500.0,0.00064107,120]
[358488440,1745206244031,-500.0,0.00064107,12]
[358488441,1745206244040,-654.68,0.00064107,120]
[358488442,1745206244050,-1142.18,0.00064107,120]
[358488443,1745206244059,-344.65088057,0.00064107,120]
[358488444,1745206244068,-641.45,0.00064107,120]
[358488445,1745206244078,-2229.31,0.00064107,7]
[358488446,1745206244087,-430.57822498,0.00064107,120]
[358488447,1745206244096,-500.0,0.00064107,120]
[358488448,1745206244105,-622.43855752,0.00064107,120]
[358488449,1745206244114,-500.0,0.00064107,30]
[358488450,1745206244124,-500.0,0.00064107,120]
[358488451,1745206244133,-715.54,0.00064107,120]
[358488452,1745206244142,-500.0,0.00064107,120]
[358488453,1745206244151,-500.0,0.00064107,120]
[358488454,1745206244159,-594.82,0.00064107,120]
[358488455,1745206244168,-576.4988847,0.00064107,120]
[358488456,1745206244178,-1009.45,0.00064107,120]
[358488457,1745206244187,-510.01,0.00064107,120]
[358488458,1745206244196,-529.65,0.00064107,120]
[358488459,1745206244204,-555.45631049,0.00064107,120]
[358488460,1745206244214,-560.16,0.00064107,120]
[358488461,1745206244223,-540.64,0.00064107,120]
[358488462,1745206244232,-674.91,0.00064107,120]
[358488463,1745206244241,-728.58,0.00064107,120]
[358488464,1745206244250,-500.0,0.00064107,120]
[358488465,1745206244259,-500.0,0.00064107,120]
[358488466,1745206244269,-768.63,0.00064107,120]
[358488467,1745206244279,-807.87,0.00064107,120]
[358488468,1745206244288,-248.71065815,0.00064107,120]
[358488469,1745206244297,-500.0,0.00064107,120]
[358488470,1745206244306,-527.1810186,0.00064107,120]
[358488471,1745206244315,-500.0,0.00064107,120]
[358488472,1745206244324,-500.0,0.00064107,120]
[358488473,1745206244333,-2029.99959765,0.00064107,120]
[358488474,1745206244342,-500.0,0.00064107,120]
[358488475,1745206244351,-500.0,0.00064107,120]
[358488476,1745206244360,-500.0,0.00064107,120]
[358488477,1745206244369,-500.0,0.00064107,120]
[358488478,1745206244378,-500.0,0.00064107,120]
[358488479,1745206244387,-199.66817015,0.00064107,120]
[358488480,1745206244396,-1443.34,0.00064107,120]
[358488481,1745206244406,-529.74077611,0.00064107,120]
[358488482,1745206244415,-518.67724656,0.00064107,120]
[358488483,1745206244424,-1105.38,0.00064107,120]
[358488484,1745206244434,-500.0,0.00064108,60]
[358488485,1745206244443,-500.0,0.00064108,120]
[358488486,1745206244453,-500.0,0.00064108,120]
[358488487,1745206244462,-500.0,0.00064108,120]
[358488488,1745206244471,-500.0,0.00064108,120]
[358488489,1745206244481,-897.9,0.00064108,120]
[358488490,1745206244490,-513.86000972,0.00064108,120]
[358488491,1745206244499,-304.14,0.00064108,120]
[358488492,1745206244508,-309.860194,0.00064108,120]
[358488493,1745206244517,-500.0,0.00064108,120]
[358488494,1745206244526,-500.0,0.00064108,120]
[358488495,1745206244536,-500.0,0.00064108,120]
[358488496,1745206244546,-500.0,0.00064108,120]
[358488497,1745206244556,-500.0,0.00064108,2]
[358488498,1745206244565,-569.27430446,0.00064108,120]
[358488499,1745206244574,-500.0,0.00064108,120]
[358488500,1745206244584,-229.97437728,0.00064108,120]
[358488501,1745206244593,-500.0,0.00064108,120]
[358488502,1745206244602,-523.01750237,0.00064108,120]
[358488503,1745206244612,-621.94,0.00064108,120]
[358488504,1745206244621,-573.3393774,0.00064108,120]
[358488505,1745206244631,-500.0,0.00064108,120]
[358488506,1745206244640,-500.0,0.00064108,120]
[358488507,1745206244649,-500.0,0.00064108,120]
[358488508,1745206244658,-999.0,0.00064108,120]
[358488509,1745206244667,-677.48,0.00064108,120]
[358488510,1745206244676,-500.0,0.00064108,120]
[358488511,1745206244686,-500.0,0.00064108,120]
[358488512,1745206244696,-500.0,0.00064108,120]
[358488513,1745206244705,-500.0,0.00064108,120]
[358488514,1745206244714,-530.48317193,0.00064108,120]
[358488515,1745206244723,-500.0,0.00064108,120]
[358488516,1745206244733,-500.0,0.00064108,120]
[358488517,1745206244746,-500.0,0.00064108,120]
[358488518,1745206244756,-500.0,0.00064108,120]
[358488519,1745206244766,-500.0,0.00064108,120]
[358488520,1745206244775,-500.0,0.00064108,120]
[358488521,1745206244785,-500.0,0.00064108,120]
[358488522,1745206244795,-500.0,0.00064108,120]
[358488523,1745206244804,-508.62177945,0.00064108,120]
[358488524,1745206244815,-540.16280134,0.00064108,120]
[358488525,1745206244824,-511.82518281,0.00064108,120]
[358488526,1745206244834,-734.71,0.00064108,120]
[358488527,1745206244844,-521.14352456,0.00064108,120]
[358488528,1745206244853,-514.73421349,0.00064108,120]
[358488529,1745206244862,-338.57329336,0.00064108,120]
[358488530,1745206244872,-500.0,0.00064108,120]
[358488531,1745206244881,-500.0,0.00064108,120]
[358488532,1745206244891,-500.0,0.00064108,120]
[358488533,1745206244900,-547.99640149,0.00064108,120]
[358488534,1745206244909,-500.0,0.00064108,120]
[358488535,1745206244918,-643.64329807,0.00064108,120]
[358488536,1745206244927,-500.0,0.00064108,120]
[358488537,1745206244945,-525.31475404,0.00064108,120]
[358488538,1745206244957,-500.0,0.00064108,120]
[358488539,1745206244967,-500.0,0.00064108,120]
[358488540,1745206244978,-500.0,0.00064108,120]
[358488541,1745206244988,-500.0,0.00064108,120]
[358488542,1745206244997,-496.97087859,0.00064108,120]
[358488543,1745206245009,-555.47710427,0.00064108,120]
[358488544,1745206245019,-500.0,0.00064108,120]
[358488545,1745206245029,-575.97183244,0.00064108,120]
[358488546,1745206245039,-500.0,0.00064108,120]
[358488547,1745206245050,-566.30084486,0.00064108,120]
[358488548,1745206245062,-500.0,0.00064108,120]
[358488549,1745206245072,-602.57910325,0.00064108,120]
[358488550,1745206245083,-500.0,0.00064108,120]
[358488551,1745206245094,-500.0,0.00064108,120]
[358488552,1745206245104,-500.0,0.00064108,120]
[358488553,1745206245114,-570.89289938,0.00064108,120]
[358488554,1745206245124,-673.27,0.00064108,120]
[358488555,1745206245135,-500.0,0.00064108,14]
[358488556,1745206245144,-500.0,0.00064108,120]
[358488557,1745206245155,-636.05415839,0.00064108,120]
[358488558,1745206245165,-541.10596348,0.00064108,120]
[358488559,1745206245175,-524.09687844,0.00064108,120]
[358488560,1745206245185,-549.2819929,0.00064108,120]
[358488561,1745206245195,-532.34693761,0.00064108,120]
[358488562,1745206245204,-500.0,0.00064108,120]
[358488563,1745206245214,-537.07091355,0.00064108,120]
[358488564,1745206245224,-539.39793651,0.00064108,120]
[358488565,1745206245234,-521.80705788,0.00064108,120]
[358488566,1745206245243,-500.0,0.00064108,120]
[358488567,1745206245253,-500.0,0.00064108,120]
[358488568,1745206245263,-500.0,0.00064108,120]
[358488569,1745206245272,-532.75749809,0.00064108,120]
[358488570,1745206245282,-500.0,0.00064108,120]
[358488571,1745206245292,-525.17661706,0.00064108,120]
[358488572,1745206245302,-500.0,0.00064108,120]
[358488573,1745206245314,-500.0,0.00064108,120]
[358488574,1745206245323,-543.78238326,0.00064108,120]
[358488575,1745206245333,-500.0,0.00064108,120]
[358488576,1745206245343,-534.22794685,0.00064108,120]
[358488577,1745206245352,-500.0,0.00064108,120]
[358488578,1745206245362,-512.69045638,0.00064108,120]
[358488579,1745206245372,-500.0,0.00064108,120]
[358488580,1745206245382,-500.0,0.00064108,120]
[358488581,1745206245391,-500.0,0.00064108,120]
[358488582,1745206245401,-500.0,0.00064108,120]
[358488583,1745206245411,-328.37236495,0.00064108,120]
[358488584,1745206245420,-500.0,0.00064109,120]
[358488585,1745206245431,-1834.58,0.00064109,120]
[358488586,1745206245440,-535.7,0.00064109,120]
[358488587,1745206245449,-620.11,0.00064109,120]
[358488588,1745206245459,-500.0,0.00064109,120]
[358488589,1745206245468,-492.29036286,0.00064109,2]
[358488590,1745206245478,-500.0,0.00064109,120]
[358488591,1745206245488,-500.0,0.00064109,120]
[358488592,1745206245497,-500.0,0.00064109,120]
[358488593,1745206245506,-500.0,0.00064109,120]
[358488594,1745206245516,-500.0,0.00064109,120]
[358488596,1745206245526,-325.14486026,0.00064109,120]
[358488597,1745206245535,-500.0,0.00064109,120]
[358488598,1745206245545,-500.0,0.00064109,120]
[358488599,1745206245554,-600.98,0.00064109,120]
[358488600,1745206245565,-500.0,0.00064109,120]
[358488601,1745206245575,-1604.29,0.00064109,120]
[358488602,1745206245584,-500.0,0.00064109,120]
[358488603,1745206245595,-500.0,0.00064109,120]
[358488604,1745206245605,-500.0,0.00064109,120]
[358488605,1745206245615,-172.57290959,0.00064109,120]
[358488606,1745206245624,-1033.25,0.00064109,120]
[358488607,1745206245634,-2091.49,0.00064109,120]
[358488608,1745206245644,-300.79082128,0.00064109,120]
[358488609,1745206245654,-500.0,0.00064109,120]
[358488610,1745206245665,-266.59368936,0.00064109,120]
[358488611,1745206245675,-500.0,0.00064109,120]
[358488612,1745206245685,-565.4688453,0.00064109,120]
[358488613,1745206245695,-500.0,0.00064109,8]
[358488614,1745206245706,-578.89184113,0.00064109,120]
[358488615,1745206245716,-571.66687096,0.00064109,120]
[358488616,1745206245726,-500.0,0.00064109,120]
[358488617,1745206245736,-500.0,0.00064109,120]
[358488618,1745206245750,-1928.23,0.00064109,120]
[358488619,1745206245760,-500.0,0.00064109,120]
[358488620,1745206245770,-500.0,0.00064109,120]
[358488621,1745206245780,-3439.08,0.00064109,2]
[358488622,1745206245790,-500.0,0.00064109,120]
[358488623,1745206245800,-500.0,0.00064109,120]
[358488624,1745206245812,-500.0,0.00064109,120]
[358488625,1745206245823,-500.0,0.00064109,120]
[358488626,1745206245834,-504.29764715,0.00064109,120]
[358488627,1745206245844,-500.0,0.00064109,120]
[358488628,1745206245854,-500.0,0.00064109,120]
[358488629,1745206245863,-500.0,0.00064109,120]
[358488630,1745206245872,-500.0,0.00064109,120]
[358488631,1745206245882,-539.96747981,0.00064109,120]
[358488632,1745206245892,-1438.39,0.00064109,120]
[358488633,1745206245903,-500.0,0.00064109,120]
[358488634,1745206245913,-600.87340077,0.00064109,120]
[358488635,1745206245924,-584.77487278,0.00064109,120]
[358488636,1745206245934,-500.0,0.00064109,118]
[358488637,1745206245944,-500.0,0.00064109,120]
[358488638,1745206245954,-500.0,0.00064109,120]
[358488639,1745206245965,-500.0,0.00064109,120]
[358488640,1745206245975,-500.0,0.00064109,120]
[358488641,1745206245985,-9767.04424442,0.0006419,5]
[358488642,1745206245994,-962.79,0.000642,2]
[358488643,1745206246004,-192.56,0.000642,2]
[358488644,1745206246014,-1971.46,0.000642,2]
[358488645,1745206246023,-2246.84018034,0.0006435,2]
[358488646,1745206246033,-962.79,0.000644,2]
[358488647,1745206246042,-192.56,0.000644,2]
[358488648,1745206246051,-1971.46,0.000644,2]
[358488649,1745206246062,-150.0,0.00064489,30]
[358488650,1745206246071,-1000.0,0.0006455,120]
[358488651,1745206246081,-9767.04424442,0.00064635,5]
[358488652,1745206246092,-9767.04424442,0.00064637,5]
[358488653,1745206246102,-461.23,0.00064643,2]
[358488654,1745206246112,-500.0,0.00064644,60]
[358488655,1745206246121,-151.0,0.00064645,120]
[358488656,1745206246130,-164.686311,0.00064645,120]
[358488657,1745206246140,-20560.3673553,0.00064645,4]
[358488658,1745206246149,-9767.04424442,0.00064645,5]
[358488659,1745206246158,-9767.04424442,0.00064646,5]
[358488660,1745206246167,-500.0,0.00064646,60]
[358488661,1745206246177,-20560.3673553,0.00064647,4]
[358488662,1745206246187,-9767.04424442,0.00064647,5]
[358488663,1745206246196,-573.61179673,0.00064654,60]
[358488664,1745206246205,-522.21,0.00064655,120]
[358488665,1745206246214,-994.36,0.00064655,120]
[358488666,1745206246223,-1864.78,0.00064655,120]
[358488667,1745206246233,-873.81,0.00064655,120]
[358488675,1745206246242,-702.1,0.00064655,120]
[358488676,1745206246383,-782.91,0.00064655,120]
[358488678,1745206246392,-543.74077367,0.00064655,120]
[358488679,1745206246401,-500.0,0.00064655,120]
[358488681,1745206246410,-500.0,0.00064655,120]
[358488682,1745206246420,-500.0,0.00064655,120]
[358488684,1745206246429,-346.00250637,0.00064655,120]
[358488686,1745206246438,-500.0,0.00064655,120]
[358488687,1745206246449,-500.0,0.00064655,12]
[358488689,1745206246458,-654.68,0.00064655,120]
[358488691,1745206246467,-1142.18,0.00064655,120]
[358488692,1745206246477,-641.45,0.00064655,120]
[358488694,1745206246486,-2229.31,0.00064655,7]
[358488695,1745206246495,-520.12717481,0.00064655,120]
[358488697,1745206246504,-500.0,0.00064655,30]
[358488698,1745206246513,-500.0,0.00064655,120]
[358488700,1745206246522,-715.54,0.00064655,120]
[358488702,1745206246531,-500.0,0.00064655,120]
[358488703,1745206246540,-500.0,0.00064655,120]
[358488705,1745206246549,-594.82,0.00064655,120]
[358488707,1745206246559,-1009.45,0.00064655,120]
[358488709,1745206246570,-510.01,0.00064655,120]
[358488710,1745206246579,-529.65,0.00064655,120]
[358488712,1745206246588,-560.16,0.00064655,120]
[358488714,1745206246598,-540.64,0.00064655,120]
[358488715,1745206246607,-674.91,0.00064655,120]
[358488717,1745206246616,-728.58,0.00064655,120]
[358488719,1745206246625,-575.87779594,0.00064655,120]
[358488720,1745206246634,-500.0,0.00064655,120]
[358488722,1745206246643,-768.63,0.00064655,120]
[358488724,1745206246653,-807.87,0.00064655,120]
[358488726,1745206246663,-567.92244876,0.00064655,120]
[358488727,1745206246672,-537.16216577,0.00064655,120]
[358488729,1745206246681,-500.0,0.00064655,120]
[358488731,1745206246690,-523.96229492,0.00064655,120]
[358488732,1745206246699,-500.0,0.00064655,120]
[358488734,1745206246708,-399.0251426,0.00064655,120]
[358488736,1745206246718,-500.0,0.00064655,120]
[358488738,1745206246727,-500.0,0.00064655,120]
[358488739,1745206246737,-1443.34,0.00064655,120]
[358488741,1745206246751,-1105.38,0.00064655,120]
[358488743,1745206246763,-500.0,0.00064656,120]
[358488745,1745206246774,-500.0,0.00064656,120]
[358488747,1745206246784,-500.0,0.00064656,120]
[358488748,1745206246794,-500.0,0.00064656,120]
[358488750,1745206246803,-897.9,0.00064656,120]
[358488752,1745206246813,-500.0,0.00064656,120]
[358488753,1745206246822,-500.0,0.00064656,120]
[358488755,1745206246832,-500.0,0.00064656,2]
[358488757,1745206246842,-570.64823336,0.00064656,120]
[358488758,1745206246851,-621.94,0.00064656,120]
[358488760,1745206246860,-500.0,0.00064656,120]
[358488762,1745206246869,-500.0,0.00064656,120]
[358488764,1745206246878,-195.4732918,0.00064656,120]
[358488765,1745206246887,-999.0,0.00064656,120]
[358488767,1745206246897,-677.48,0.00064656,120]
[358488769,1745206246906,-500.0,0.00064656,120]
[358488770,1745206246915,-264.89218517,0.00064656,120]
[358488772,1745206246924,-500.0,0.00064656,120]
[358488774,1745206246933,-500.0,0.00064656,120]
[358488775,1745206246942,-564.1951004,0.00064656,120]
[358488777,1745206246952,-734.71,0.00064656,120]
[358488779,1745206246961,-500.0,0.00064656,120]
[358488781,1745206246971,-240.30428967,0.00064656,120]
[358488782,1745206246980,-357.36177022,0.00064656,120]
[358488784,1745206246990,-544.47823911,0.00064656,120]
[358488786,1745206246999,-500.0,0.00064656,120]
[358488787,1745206247008,-673.27,0.00064656,120]
[358488789,1745206247017,-500.0,0.00064656,14]
[358488791,1745206247027,-500.0,0.00064656,120]
[358488792,1745206247036,-500.0,0.00064656,120]
[358488794,1745206247045,-532.66746576,0.00064656,120]
[358488796,1745206247054,-500.0,0.00064656,120]
[358488797,1745206247064,-500.0,0.00064656,120]
[358488799,1745206247074,-500.0,0.00064656,120]
[358488801,1745206247083,-500.0,0.00064656,120]
[358488803,1745206247093,-500.0,0.00064656,120]
[358488805,1745206247103,-500.0,0.00064656,120]
[358488807,1745206247112,-201.71181952,0.00064656,120]
[358488809,1745206247121,-500.0,0.00064656,120]
[358488811,1745206247131,-500.0,0.00064656,120]
[358488813,1745206247141,-500.0,0.00064656,120]
[358488815,1745206247150,-523.83764768,0.00064656,120]
[358488817,1745206247160,-500.0,0.00064657,120]
[358488819,1745206247169,-1834.58,0.00064657,120]
[358488821,1745206247179,-620.11,0.00064657,120]
[358488823,1745206247187,-500.0,0.00064657,120]
[358488824,1745206247197,-500.0,0.00064657,120]
[358488825,1745206247206,-500.0,0.00064657,120]
[358488826,1745206247216,-500.0,0.00064657,120]
[358488827,1745206247226,-500.0,0.00064657,120]
[358488828,1745206247236,-500.0,0.00064657,120]
[358488829,1745206247247,-500.0,0.00064657,120]
[358488830,1745206247256,-500.0,0.00064657,120]
[358488831,1745206247266,-600.98,0.00064657,120]
[358488832,1745206247275,-500.0,0.00064657,120]
[358488833,1745206247284,-1604.29,0.00064657,120]
[358488834,1745206247294,-500.0,0.00064657,120]
[358488835,1745206247303,-500.0,0.00064657,120]
[358488836,1745206247312,-323.95281296,0.00064657,120]
[358488837,1745206247321,-1033.25,0.00064657,120]
[358488838,1745206247331,-2091.49,0.00064657,120]
[358488839,1745206247340,-549.65409876,0.00064657,120]
[358488840,1745206247350,-196.90588995,0.00064657,120]
[358488842,1745206247359,-500.0,0.00064657,8]
[358488843,1745206247368,-572.51204365,0.00064657,120]
[358488845,1745206247378,-646.68581155,0.00064657,120]
[358488847,1745206247387,-1928.23,0.00064657,120]